bitfinex/quotes_SOLUSD_20250908
["timestamp","ask_amount","ask_price","bid_price","bid_amount"]
[1757340166683,0.67,213.32,213.23,40.42]
[1757340166879,10.73394904,213.26,213.24,42.5]
[1757340167075,0.67,213.25,213.24,42.5]
[1757340167380,13.59559401,213.37,213.24,42.5]
[1757340167570,5.35882493,213.28,213.24,42.5]
[1757340167757,0.67,213.27,213.24,42.5]
[1757340167961,13.59559401,213.37,213.24,42.5]
[1757340167962,0.67,213.26,213.24,42.5]
[1757340168157,0.67,213.3,213.24,47.18943691]
[1757340169184,0.67,213.3,213.23,11.72425928]
[1757340169564,10.73394904,213.35,213.22,13.59559401]
[1757340169763,10.73394904,213.35,213.23,0.68]
[1757340169764,0.67,213.34,213.23,0.68]
[1757340170083,10.73394904,213.33,213.23,0.68]
[1757340170283,0.67,213.32,213.23,0.68]
[1757340170469,0.67,213.32,213.24,42.42]
[1757340171682,0.67,213.32,213.24,4.68955167]
[1757340172008,22.45252314,213.34,213.25,42.34]
[1757340172164,0.67,213.31,213.25,42.34]
[1757340172770,0.67,213.34,213.25,42.34]
[1757340173293,10.73394904,213.34,213.21,4.69020526]
[1757340173490,10.73394904,213.34,213.23,0.68]
[1757340173491,0.67,213.33,213.23,0.68]
[1757340173794,0.67,213.33,213.25,16.41266119]
[1757340173968,0.67,213.33,213.25,17.09266119]
[1757340174168,0.67,213.36,213.26,0.46891118]
[1757340174370,0.67,213.36,213.27,42.94]
[1757340174965,0.67,213.36,213.28,14.27559401]
[1757340175387,0.67,213.36,213.28,0.68]
[1757340175587,0.67,213.36,213.29,68.18]
[1757340176089,0.67,213.36,213.3,4.68823253]
[1757340176479,0.67,213.36,213.3,16.40881387]
[1757340176694,10.79394904,213.38,213.3,16.40881387]
[1757340176991,0.06,213.38,213.33,26.0]
[1757340177296,0.06,213.38,213.37,26.0]
[1757340177694,0.06,213.38,213.37,26.68]
[1757340177895,0.06,213.38,213.37,31.36669447]
[1757340178495,0.06,213.38,213.37,45.43095792]
[1757340179476,0.06,213.38,213.37,87.49095792]
[1757340181193,0.06,213.38,213.37,87.43095792]
[1757340181393,0.06,213.4,213.38,13.59559401]
[1757340181569,1e-08,213.41,213.4,13.59559401]
[1757340181884,0.2,213.52,213.47,26.0]
[1757340182191,0.2,213.52,213.48,41.94]
[1757340182398,0.2,213.52,213.49,16.39421049]
[1757340182601,0.2,213.52,213.5,13.59559401]
[1757340182772,0.2,213.52,213.5,14.27559401]
[1757340182972,0.2,213.52,213.51,14.27559401]
[1757340183500,0.67,213.64,213.54,26.0]
[1757340183686,0.67,213.64,213.55,55.51559401]
[1757340184107,0.1,213.6,213.55,55.51559401]
[1757340184403,0.1,213.6,213.56,4.68252481]
[1757340184901,0.1,213.6,213.59,26.0]
[1757340185504,0.1,213.6,213.59,67.84]
[1757340186397,0.1,213.6,213.59,26.0]
[1757340186598,0.1,213.6,213.59,67.78]
[1757340186989,0.1,213.6,213.59,73.14186712]
[1757340187391,0.1,213.6,213.59,73.08186712]
[1757340187596,0.1,213.6,213.59,86.67746113]
[1757340188009,0.1,213.6,213.59,67.7]
[1757340188593,0.1,213.6,213.59,30.68186712]
[1757340188910,0.1,213.6,213.59,67.68]
[1757340189086,0.1,213.6,213.58,26.0]
[1757340189286,0.1,213.6,213.55,0.68]
[1757340189287,0.1,213.6,213.59,41.66]
[1757340189583,0.1,213.6,213.57,26.0]
[1757340189782,0.1,213.6,213.58,41.64]
[1757340190003,0.1,213.6,213.57,26.68]
[1757340190201,0.1,213.6,213.58,41.62]
[1757340190405,0.1,213.6,213.59,4.68186712]
[1757340190817,0.1,213.6,213.59,5.36186712]
[1757340191503,0.1,213.6,213.59,41.56]
[1757340191704,0.1,213.6,213.59,42.24]
[1757340192303,0.1,213.6,213.59,59.83746113]
[1757340192512,0.1,213.6,213.59,60.51746113]
[1757340192816,0.1,213.6,213.59,94.21746113]
[1757340193491,0.01722652,213.6,213.59,94.21746113]
[1757340193813,0.68,213.72,213.62,26.0]
[1757340194011,0.68,213.72,213.64,13.59559401]
[1757340194188,10.73394904,213.76,213.64,13.59559401]
[1757340194189,0.68,213.76,213.67,26.0]
[1757340194394,0.68,213.75,213.68,46.09988926]
[1757340194619,0.68,213.74,213.71,26.0]
[1757340194798,0.68,213.77,213.72,41.42]
[1757340195118,0.68,213.76,213.72,41.42]
[1757340195903,0.68,213.75,213.74,26.0]
[1757340196096,0.68,213.75,213.68,0.68]
[1757340196311,0.68,213.75,213.72,26.0]
[1757340196623,0.68,213.75,213.73,41.38]
[1757340196913,0.68,213.78,213.73,41.38]
[1757340197218,0.68,213.77,213.73,41.38]
[1757340197816,15.41099875,213.81,213.73,41.38]
[1757340197817,0.68,213.8,213.73,41.38]
[1757340198114,0.68,213.83,213.76,26.0]
[1757340198313,0.68,213.83,213.76,30.67793038]
[1757340198527,0.68,213.82,213.77,26.0]
[1757340198694,0.68,213.81,213.78,41.3]
[1757340199297,0.68,213.84,213.78,41.3]
[1757340200300,0.68,213.84,213.77,26.68]
[1757340200497,5.3563944,213.84,213.78,41.22]
[1757340201021,0.68,213.84,213.78,41.22]
[1757340201409,11.41394904,213.87,213.78,41.22]
[1757340201925,0.68,213.86,213.78,41.22]
[1757340202125,0.68,213.86,213.79,41.16]
[1757340202313,0.68,213.86,213.79,67.84]
[1757340202503,5.35611558,213.86,213.8,41.12]
[1757340202703,0.68,213.85,213.79,26.0]
[1757340202921,0.68,213.85,213.8,41.1]
[1757340203425,4.67611558,213.86,213.8,41.78]
[1757340204834,10.73394904,213.82,213.71,4.67910653]
[1757340205020,16.36600616,213.86,213.71,5.35910653]
[1757340205021,10.73394904,213.79,213.71,5.35910653]
[1757340205204,10.73394904,213.78,213.71,0.68]
[1757340205520,11.41394904,213.79,213.72,41.0]
[1757340205709,11.41394904,213.79,213.72,67.0]
[1757340206429,4.67792487,213.77,213.72,41.0]
[1757340206666,10.73394904,213.74,213.66,0.68]
[1757340206927,10.73394904,213.73,213.7,26.0]
[1757340207130,0.68,213.72,213.71,40.96]
[1757340207331,11.41394904,213.72,213.64,4.68075004]
[1757340207503,11.41394904,213.72,213.65,40.94]
[1757340208119,11.41394904,213.74,213.65,41.62]
[1757340208323,0.68,213.74,213.68,26.0]
[1757340208502,11.41394904,213.77,213.7,4.67945718]
[1757340208715,0.68,213.77,213.7,4.67945718]
[1757340208914,11.41394904,213.76,213.69,40.92]
[1757340209109,16.37120538,213.79,213.66,11.70038797]
[1757340209110,10.73394904,213.74,213.66,26.0]
[1757340209351,11.41394904,213.73,213.67,40.88]
[1757340209634,16.37120538,213.79,213.67,40.88]
[1757340209840,10.73394904,213.75,213.67,41.56]
[1757340210440,16.09230038,213.76,213.68,4.67989517]
[1757340210630,5.35835134,213.76,213.68,4.67989517]
[1757340210833,10.73394904,213.75,213.68,4.67989517]
[1757340211513,5.35835134,213.76,213.67,46.24009204]
[1757340211715,0.68,213.79,213.7,26.0]
[1757340211923,10.73394904,213.79,213.74,26.0]
[1757340212229,0.68,213.79,213.75,40.76]
[1757340212431,10.73394904,213.8,213.76,40.78]
[1757340212611,5.35729689,213.8,213.77,40.78]
[1757340212810,10.73394904,213.79,213.78,40.78]
[1757340213016,11.41394904,213.79,213.7,26.0]
[1757340213231,10.73394904,213.78,213.71,66.76]
[1757340213643,11.41394904,213.79,213.71,67.44]
[1757340213937,10.73394904,213.78,213.71,26.0]
[1757340214130,10.73394904,213.78,213.72,40.74]
[1757340214533,4.67770605,213.78,213.72,40.74]
[1757340214735,15.41165509,213.78,213.71,26.68]
[1757340214930,10.73394904,213.75,213.72,40.68]
[1757340215132,10.73394904,213.76,213.73,40.68]
[1757340215338,20.0,213.92,213.74,41.34]
[1757340215629,10.73394904,213.84,213.75,41.39]
[1757340216341,11.40394904,213.84,213.75,41.39]
[1757340216547,4.67661226,213.83,213.75,41.39]
[1757340216726,4.67661226,213.83,213.73,4.67865252]
[1757340216727,0.06,213.78,213.72,14.30559401]
[1757340216926,0.06,213.78,213.73,40.64]
[1757340217143,0.06,213.78,213.74,40.64]
[1757340217642,0.06,213.78,213.75,41.35]
[1757340217951,0.06,213.78,213.75,40.64]
[1757340218147,11.40394904,213.77,213.76,40.6]
[1757340218332,0.67,213.77,213.76,40.58]
[1757340218525,5.34792487,213.77,213.76,40.58]
[1757340218836,4.67792487,213.77,213.76,40.58]
[1757340219044,4.73775089,213.78,213.76,40.58]
[1757340219441,0.67,213.77,213.7,0.71]
[1757340219644,16.43201602,213.78,213.71,40.54]
[1757340219834,16.43201602,213.78,213.71,41.25]
[1757340220243,0.06,213.78,213.72,0.71]
[1757340220434,0.06,213.78,213.73,40.5]
[1757340220631,0.06,213.78,213.74,0.71]
[1757340220843,0.06,213.78,213.75,0.71]
[1757340221035,0.06,213.78,213.76,0.71]
[1757340221543,0.06,213.78,213.77,40.46]
[1757340221774,0.73,213.78,213.73,26.0]
[1757340222068,0.06,213.78,213.77,40.46]
[1757340222731,0.00755001,213.78,213.77,41.17]
[1757340222937,0.00755001,213.78,213.77,40.46]
[1757340223531,0.00755001,213.78,213.77,41.17]
[1757340224655,0.00755001,213.78,213.77,41.07]
[1757340225565,0.00755001,213.78,213.77,40.32]
[1757340227950,0.00755001,213.78,213.75,4.67833004]
[1757340228263,0.00755001,213.78,213.77,40.3]
[1757340229047,0.00755001,213.78,213.77,44.97792487]
[1757340229656,0.00755001,213.78,213.77,45.68792487]
[1757340230168,0.00755001,213.78,213.77,41.01]
[1757340230371,0.00755001,213.78,213.77,40.14]
[1757340230752,0.00755001,213.78,213.77,40.85]
[1757340231769,0.00755001,213.78,213.77,40.14]
[1757340232472,0.00755001,213.78,213.77,40.06]
[1757340232672,0.00755001,213.78,213.77,40.77]
[1757340232855,7.22713133,213.81,213.77,40.77]
[1757340233049,0.06,213.81,213.77,40.06]
[1757340233564,0.06,213.81,213.78,4.67770605]
[1757340234163,0.06,213.81,213.78,0.71]
[1757340235255,0.06,213.81,213.79,4.67748725]
[1757340235456,0.06,213.81,213.8,39.98]
[1757340240279,0.06,213.81,213.76,0.71]
[1757340240573,0.06,213.81,213.77,40.51]
[1757340240777,0.06,213.81,213.74,0.03]
[1757340240778,7.16713133,213.78,213.74,0.03]
[1757340240973,0.06,213.81,213.75,39.76]
[1757340241277,7.16713133,213.78,213.75,39.76]
[1757340241474,7.83713133,213.78,213.75,39.76]
[1757340241777,7.16713133,213.77,213.75,39.76]
[1757340241961,0.06,213.81,213.76,0.71]
[1757340242165,0.06,213.81,213.77,0.71]
[1757340242362,0.06,213.81,213.78,40.45]
[1757340242587,0.06,213.81,213.8,26.0]
[1757340242790,0.06,213.81,213.8,39.59559401]
[1757340242989,0.0077044,213.81,213.8,40.30559401]
[1757340243662,1e-08,213.84,213.83,44.27220627]
[1757340243872,1e-08,213.84,213.83,84.01220627]
[1757340244071,1e-08,213.84,213.83,44.98220627]
[1757340244283,1e-08,213.84,213.83,84.76220627]
[1757340246894,1e-08,213.84,213.83,44.98220627]
[1757340247260,1e-08,213.84,213.83,84.64220627]
[1757340247788,1e-08,213.84,213.83,84.62220627]
[1757340248572,0.72,213.98,213.91,26.0]
[1757340248777,0.72,213.98,213.92,39.62]
[1757340249176,7.88713133,213.98,213.92,39.62]
[1757340249682,7.88713133,213.98,213.93,4.67442621]
[1757340249886,7.88713133,213.98,213.94,39.58]
[1757340250088,7.16713133,213.98,213.94,39.58]
[1757340250294,0.72,213.98,213.94,39.58]
[1757340250792,7.88713133,214.01,213.97,26.0]
[1757340251090,0.72,214.03,213.98,39.54]
[1757340251291,7.88713133,214.02,213.99,39.54]
[1757340251474,0.72,214.01,213.99,39.54]
[1757340251674,7.16713133,214.02,213.99,39.54]
[1757340251869,7.16713133,214.03,213.99,39.54]
[1757340252110,0.72,214.02,213.99,39.54]
[1757340252399,0.72,214.01,213.99,39.54]
[1757340252789,7.88713133,214.0,213.91,0.69]
[1757340252993,7.16713133,213.97,213.89,5.36530038]
[1757340253186,7.16713133,213.92,213.9,39.48]
[1757340253392,7.16713133,213.93,213.86,39.02595387]
[1757340253581,0.72,213.94,213.9,26.0]
[1757340253777,7.88713133,213.94,213.91,39.52]
[1757340253979,7.16713133,213.92,213.86,33.66]
[1757340254184,7.16713133,213.87,213.86,33.66]
[1757340254399,7.88713133,213.87,213.86,73.22]
[1757340254978,7.88713133,213.87,213.86,33.66]
[1757340255187,7.88713133,213.87,213.86,39.54]
[1757340255792,5.39573759,213.87,213.86,39.54]
[1757340255977,12.56286892,213.87,213.86,39.54]
[1757340256304,5.39573759,213.87,213.86,39.54]
[1757340256489,12.56286892,213.87,213.86,39.5]
[1757340256681,12.56286892,213.87,213.86,39.48]
[1757340256682,17.08508158,213.87,213.86,39.48]
[1757340256882,24.25221291,213.87,213.86,39.48]
[1757340257480,24.25221291,213.87,213.77,26.03]
[1757340257481,13.59559401,213.86,213.77,0.03]
[1757340257687,7.16713133,213.82,213.78,39.48]
[1757340257880,11.84398203,213.82,213.78,39.48]
[1757340258085,0.72,213.81,213.78,39.48]
[1757340258295,12.56398203,213.82,213.78,39.48]
[1757340259013,7.16713133,213.81,213.78,39.48]
[1757340259313,7.88713133,213.8,213.79,39.46]
[1757340259679,7.88713133,213.8,213.77,0.03]
[1757340260010,11.84443297,213.8,213.78,39.4]
[1757340260513,7.16713133,213.79,213.77,0.03]
[1757340260685,17.09047282,213.8,213.78,39.4]
[1757340260884,0.72,213.79,213.77,0.03]
[1757340261904,11.84483738,213.78,213.77,0.03]
[1757340262110,0.72,213.79,213.77,0.03]
[1757340262311,7.16713133,213.78,213.77,0.03]
[1757340262906,7.88713133,213.78,213.77,0.03]
[1757340263287,4.67754946,213.79,213.77,0.03]
[1757340263504,7.16713133,213.78,213.77,0.03]
[1757340265501,7.16713133,213.8,213.77,0.72]
[1757340265808,7.16713133,213.8,213.77,0.03]
[1757340266004,7.16713133,213.81,213.77,0.03]
[1757340266308,7.16713133,213.81,213.78,0.69]
[1757340266488,84.27639747,213.84,213.78,0.69]
[1757340266699,7.16713133,213.83,213.78,0.69]
[1757340267506,84.27642514,213.84,213.77,0.03]
[1757340267507,7.16713133,213.81,213.77,0.03]
[1757340267809,7.16713133,213.79,213.77,0.03]
[1757340267995,7.16713133,213.78,213.77,0.03]
[1757340268198,7.16713133,213.79,213.77,39.25]
[1757340268401,7.16713133,213.8,213.77,39.25]
[1757340268601,11.84443849,213.8,213.77,39.25]
[1757340268817,7.16713133,213.79,213.77,39.25]
[1757340269398,11.84443849,213.8,213.77,39.25]
[1757340269900,4.67730716,213.8,213.77,39.25]
[1757340271313,79.6,213.84,213.77,39.25]
[1757340271626,86.76713133,213.84,213.78,0.69]
[1757340271922,79.6,213.84,213.78,0.69]
[1757340272493,84.27640626,213.84,213.78,0.69]
[1757340273204,7.16713133,213.8,213.77,0.03]
[1757340273634,7.16713133,213.78,213.77,0.03]
[1757340273916,7.16713133,213.78,213.77,39.11]
[1757340274125,7.16713133,213.79,213.77,39.11]
[1757340274621,7.88713133,213.81,213.77,39.11]
[1757340274806,7.16713133,213.79,213.77,39.11]
[1757340274999,4.67726847,213.8,213.77,39.11]
[1757340275000,7.88713133,213.78,213.77,39.11]
[1757340275229,7.16713133,213.78,213.77,39.11]
[1757340276518,12.55483738,213.78,213.77,39.07]
[1757340277224,37.84469652,213.78,213.75,39.02]
[1757340277525,20.76272534,213.76,213.75,39.02]
[1757340277723,21.47272534,213.76,213.75,39.02]
[1757340278932,18.27395658,213.75,213.74,39.01]
[1757340279228,26.15108791,213.75,213.74,39.01]
[1757340279726,26.15108791,213.75,213.74,0.03]
[1757340280022,26.15108791,213.75,213.74,38.99]
[1757340280728,26.15108791,213.75,213.74,0.03]
[1757340281614,18.98395658,213.75,213.74,0.03]
[1757340281926,26.15108791,213.75,213.74,0.03]
[1757340282128,4.67836257,213.75,213.74,0.03]
[1757340282429,15.38210631,213.75,213.74,0.03]
[1757340282611,16.09210631,213.75,213.74,0.03]
[1757340282928,29.68770032,213.75,213.74,0.03]
[1757340283418,16.09210631,213.75,213.74,0.03]
[1757340283602,15.38210631,213.75,213.74,0.03]
[1757340283928,16.09210631,213.75,213.74,0.03]
[1757340284318,15.38210631,213.75,213.74,0.03]
[1757340284523,16.09210631,213.75,213.74,0.03]
[1757340284924,4.72149387,213.79,213.74,0.75]
[1757340285107,10.70374374,213.78,213.75,0.72]
[1757340285306,17.07972923,213.81,213.75,0.72]
[1757340285531,10.70374374,213.79,213.75,0.72]
[1757340285728,17.07972923,213.81,213.75,0.72]
[1757340285933,10.70374374,213.79,213.75,0.72]
[1757340286426,10.70374374,213.79,213.76,0.72]
[1757340286634,10.70374374,213.77,213.74,0.03]
[1757340286808,10.70374374,213.75,213.74,0.03]
[1757340287009,10.70374374,213.75,213.74,38.97]
[1757340288328,11.41374374,213.75,213.74,38.97]
[1757340288934,15.38210631,213.75,213.74,38.97]
[1757340289736,15.38210631,213.75,213.74,0.03]
[1757340289737,16.09210631,213.75,213.74,0.03]
[1757340290520,15.38210631,213.75,213.74,0.03]
[1757340291223,16.09210631,213.75,213.74,0.03]
[1757340293437,15.38210631,213.75,213.74,0.03]
[1757340295341,133.17,213.79,213.74,0.03]
[1757340295342,132.46,213.79,213.74,0.75]
[1757340295530,15.38144979,213.78,213.74,0.75]
[1757340295732,15.38144979,213.78,213.75,0.72]
[1757340296047,15.38144979,213.78,213.76,0.72]
[1757340296519,15.38144979,213.78,213.74,0.03]
[1757340296825,15.38144979,213.78,213.75,0.72]
[1757340297026,15.38144979,213.78,213.76,0.72]
[1757340297423,15.38144979,213.78,213.74,0.03]
[1757340297424,0.06,213.79,213.77,0.72]
[1757340297630,0.06,213.79,213.78,0.72]
[1757340300623,10.76374374,213.79,213.76,0.72]
[1757340300823,10.70374374,213.77,213.74,0.03]
[1757340301044,10.70374374,213.77,213.75,38.92]
[1757340301644,15.38144979,213.78,213.74,0.03]
[1757340301827,4.67770605,213.78,213.75,38.92]
[1757340302026,10.70374374,213.78,213.75,39.64]
[1757340302334,10.70374374,213.78,213.76,0.72]
[1757340302524,10.70374374,213.77,213.74,0.03]
[1757340302721,10.70374374,213.76,213.75,38.92]
[1757340302941,10.70374374,213.76,213.74,0.03]
[1757340303133,0.71,213.78,213.74,0.03]
[1757340303134,4.67792487,213.77,213.75,38.92]
[1757340303539,80.31,213.76,213.74,38.95]
[1757340303934,79.6,213.76,213.74,38.95]
[1757340304341,10.70374374,213.75,213.74,38.95]
[1757340304935,11.41374374,213.75,213.74,38.95]
[1757340305131,11.41374374,213.75,213.62,16.00973638]
[1757340305132,79.6,213.74,213.62,16.00973638]
[1757340305332,52.08735049,213.75,213.64,15.24]
[1757340305333,24.29933775,213.7,213.64,15.24]
[1757340305743,25.01933775,213.7,213.64,15.24]
[1757340306129,28.45162689,213.7,213.64,15.24]
[1757340306526,28.45162689,213.7,213.57,0.03]
[1757340306742,10.70374374,213.61,213.57,0.03]
[1757340306946,24.29933775,213.61,213.57,0.03]
[1757340307129,40.40451026,213.61,213.57,0.03]
[1757340307538,43.82863016,213.61,213.57,0.03]
[1757340307753,33.12488642,213.61,213.57,0.03]
[1757340308259,29.70076652,213.61,213.57,0.03]
[1757340308558,28.98076652,213.61,213.57,0.03]
[1757340309157,4.68142877,213.61,213.57,0.72]
[1757340309737,10.70374374,213.63,213.57,0.72]
[1757340309961,10.70374374,213.62,213.57,0.72]
[1757340310441,16.38269986,213.64,213.58,0.69]
[1757340310442,10.70374374,213.63,213.58,0.69]
[1757340310643,15.38451513,213.64,213.57,0.03]
[1757340310843,15.38451513,213.64,213.6,0.72]
[1757340311038,10.70374374,213.62,213.6,0.03]
[1757340311232,4.68142877,213.61,213.6,0.03]
[1757340311547,5.4001145,213.67,213.6,0.03]
[1757340311774,10.70374374,213.65,213.61,0.69]
[1757340312151,10.70374374,213.65,213.62,0.69]
[1757340312450,10.70374374,213.65,213.61,38.92]
[1757340312660,94.98385824,213.67,213.62,0.69]
[1757340312835,94.98385824,213.67,213.63,0.69]
[1757340313163,79.6,213.67,213.64,0.69]
[1757340313336,79.6,213.67,213.65,0.69]
[1757340313537,4.68011156,213.68,213.65,0.69]
[1757340313744,4.68011156,213.68,213.66,0.69]
[1757340313950,79.6,213.71,213.67,0.69]
[1757340314555,84.27926526,213.71,213.67,0.69]
[1757340314751,84.27926041,213.71,213.67,0.69]
[1757340315335,94.98300415,213.71,213.67,0.69]
[1757340315655,84.27926041,213.71,213.67,0.69]
[1757340315854,84.27926041,213.71,213.68,38.92]
[1757340316155,10.70374374,213.72,213.69,0.69]
[1757340316357,4.67897597,213.73,213.7,0.69]
[1757340316856,4.67870318,213.74,213.71,0.69]
[1757340317357,15.38207684,213.76,213.71,0.69]
[1757340317548,14.37559401,213.79,213.72,0.69]
[1757340317864,4.67770605,213.78,213.72,0.69]
[1757340318865,4.73748725,213.79,213.72,5.36894913]
[1757340319068,4.73748725,213.79,213.73,0.69]
[1757340319974,0.06,213.79,213.73,0.69]
[1757340321555,0.06,213.79,213.73,5.36879225]
[1757340321750,0.06,213.79,213.73,4.67879225]
[1757340321947,0.06,213.79,213.74,0.69]
[1757340322163,0.06,213.79,213.75,38.9]
[1757340322464,0.06,213.79,213.76,0.69]
[1757340322769,0.06,213.79,213.77,0.69]
[1757340323148,0.06,213.79,213.78,0.69]
[1757340323561,0.06,213.79,213.75,39.59]
[1757340323855,0.06,213.79,213.76,0.69]
[1757340324164,0.06,213.79,213.77,0.69]
[1757340324770,0.06,213.79,213.75,39.59]
[1757340324949,0.06,213.79,213.76,0.69]
[1757340325451,0.06,213.79,213.77,0.69]
[1757340325658,0.06,213.79,213.76,0.69]
[1757340325882,0.06,213.79,213.77,0.69]
[1757340326073,0.06,213.79,213.75,38.9]
[1757340326252,0.06,213.79,213.75,39.59]
[1757340326563,10.70374374,213.77,213.76,38.88]
[1757340326869,11.42374374,213.77,213.76,38.88]
[1757340327057,15.38166861,213.77,213.76,38.88]
[1757340327261,4.67792487,213.77,213.76,38.88]
[1757340328173,4.67776251,213.78,213.76,38.88]
[1757340328358,4.67776251,213.78,213.76,39.57]
[1757340328562,4.67776251,213.78,213.76,38.88]
[1757340329151,11.42374374,213.77,213.69,0.69]
[1757340329351,11.42374374,213.77,213.7,38.88]
[1757340329352,10.70374374,213.76,213.7,38.88]
[1757340329574,10.70374374,213.76,213.7,39.57]
[1757340329779,10.70374374,213.77,213.7,39.57]
[1757340330275,10.70374374,213.76,213.7,39.57]
[1757340330475,10.70374374,213.75,213.71,38.88]
[1757340330670,10.70374374,213.75,213.71,39.57]
[1757340330866,10.70374374,213.76,213.71,39.57]
[1757340331277,4.67836257,213.75,213.71,39.57]
[1757340331449,11.42374374,213.74,213.67,0.69]
[1757340331655,10.70374374,213.7,213.64,0.69]
[1757340331959,10.70374374,213.69,213.67,0.03]
[1757340332168,10.70374374,213.7,213.67,0.03]
[1757340332876,10.70374374,213.69,213.67,0.03]
[1757340333067,10.70374374,213.68,213.67,0.03]
[1757340334174,11.42374374,213.68,213.67,38.91]
[1757340334376,10.70374374,213.68,213.67,38.91]
[1757340335070,11.42374374,213.68,213.67,38.91]
[1757340335273,16.10363891,213.68,213.67,38.91]
[1757340335473,15.38363891,213.68,213.67,38.91]
[1757340335965,16.06363891,213.68,213.67,38.91]
[1757340337294,10.70374374,213.69,213.67,38.91]
[1757340337464,79.6,213.71,213.68,0.69]
[1757340337465,84.27925904,213.71,213.68,0.69]
[1757340337660,4.67925904,213.71,213.68,0.69]
[1757340337859,10.70374374,213.7,213.67,38.91]
[1757340338170,4.67925904,213.71,213.67,38.91]
[1757340338373,27.08109833,213.71,213.67,38.91]
[1757340338772,10.70374374,213.68,213.67,0.03]
[1757340339079,10.70374374,213.68,213.67,38.89]
[1757340339274,15.38363891,213.68,213.67,38.89]
[1757340339658,4.67989517,213.68,213.67,38.89]
[1757340340073,15.38363891,213.68,213.67,38.89]
[1757340340879,29.65923292,213.68,213.67,0.03]
[1757340342260,28.97923292,213.68,213.67,0.03]
[1757340343287,4.67967616,213.69,213.67,0.03]
[1757340343469,79.6,213.7,213.67,0.72]
[1757340343872,84.27954667,213.7,213.67,0.72]
[1757340344171,79.6,213.7,213.67,0.03]
[1757340344370,79.6,213.7,213.68,0.69]
[1757340344584,91.45320697,213.7,213.67,0.03]
[1757340344978,11.85320697,213.7,213.67,0.03]
[1757340345494,4.67946759,213.7,213.67,0.03]
[1757340345869,4.67946759,213.7,213.68,0.69]
[1757340346672,4.67916668,213.72,213.69,0.69]
[1757340346890,79.6,213.75,213.7,39.55]
[1757340347191,79.6,213.75,213.71,0.69]
[1757340347389,11.75513724,213.77,213.72,0.69]
[1757340347586,18.92887662,213.77,213.73,0.69]
[1757340347772,13.65559401,213.77,213.73,0.69]
[1757340347972,13.65559401,213.77,213.7,43.53943593]
[1757340347973,13.65559401,213.77,213.74,0.69]
[1757340348190,0.06,213.77,213.75,38.84]
[1757340348991,0.06,213.77,213.76,0.69]
[1757340349180,0.06,213.79,213.78,26.0]
[1757340349381,0.06,213.79,213.78,31.36770605]
[1757340350790,0.06,213.79,213.78,26.69]
[1757340351596,0.06,213.79,213.78,31.36770605]
[1757340354498,0.06,213.79,213.78,0.69]
[1757340354699,0.06,213.79,213.78,39.51]
[1757340354877,0.06,213.79,213.78,0.69]
[1757340355080,0.06,213.79,213.78,39.51]
[1757340355279,0.06,213.79,213.78,0.69]
[1757340355592,0.06,213.79,213.78,39.51]